fUSD/lending_fUSD_20250905
["ID","MTS","AMOUNT","RATE_DAILY","PERIOD"]
[383759315,1757109169254,-425.6,0.00037534,10]
[383759316,1757109169264,-400.0,0.00037534,10]
[383759317,1757109169274,-400.0,0.00037534,10]
[383759318,1757109169283,-490.57,0.00037534,10]
[383759319,1757109169293,-1000.0,0.00037534,114]
[383759320,1757109169303,-400.0,0.00037534,10]
[383759321,1757109169312,-400.0,0.00037534,10]
[383759322,1757109169322,-400.0,0.00037534,10]
[383759323,1757109169331,-641.44,0.00037534,10]
[383759324,1757109169341,-400.0,0.00037534,10]
[383759325,1757109169351,-419.23,0.00037534,10]
[383759326,1757109169361,-400.0,0.00037534,10]
[383759327,1757109169371,-401.8,0.00037534,10]
[383759328,1757109169380,-403.59,0.00037534,10]
[383759329,1757109169390,-400.0,0.00037534,10]
[383759330,1757109169400,-400.0,0.00037534,10]
[383759331,1757109169411,-400.0,0.00037534,10]
[383759332,1757109169420,-548.51,0.00037534,10]
[383759333,1757109169430,-452.54,0.00037534,10]
[383759334,1757109169440,-400.0,0.00037534,10]
[383759335,1757109169452,-400.0,0.00037534,10]
[383759336,1757109169462,-440.39,0.00037534,10]
[383759337,1757109169471,-400.0,0.00037534,10]
[383759338,1757109169481,-400.0,0.00037534,10]
[383759339,1757109169491,-679.14,0.00037534,10]
[383759340,1757109169501,-433.62,0.00037534,10]
[383759341,1757109169512,-426.4234199,0.00037534,10]
[383759342,1757109169522,-400.0,0.00037534,10]
[383759343,1757109169532,-157.42203785,0.00037534,10]
[383759344,1757109169542,-400.0,0.00037534,10]
[383759345,1757109169551,-400.0,0.00037534,10]
[383759346,1757109169561,-400.0,0.00037534,10]
[383759347,1757109169570,-589.1,0.00037534,10]
[383759348,1757109169580,-551.08,0.00037534,10]
[383759349,1757109169590,-415.82,0.00037534,10]
[383759350,1757109169600,-576.99,0.00037534,10]
[383759351,1757109169610,-400.0,0.00037534,10]
[383759352,1757109169620,-400.0,0.00037534,10]
[383759353,1757109169629,-455.37,0.00037534,10]
[383759354,1757109169639,-410.32,0.00037534,10]
[383759355,1757109169648,-497.74,0.00037534,10]
[383759356,1757109169658,-400.0,0.00037534,10]
[383759357,1757109169668,-400.0,0.00037534,10]
[383759358,1757109169678,-498.14,0.00037534,10]
[383759359,1757109169688,-400.0,0.00037534,10]
[383759360,1757109169700,-878.01,0.00037534,10]
[383759361,1757109169710,-400.0,0.00037534,10]
[383759362,1757109169720,-400.0,0.00037534,10]
[383759363,1757109169730,-400.0,0.00037534,10]
[383759364,1757109169739,-1227.44,0.00037534,10]
[383759365,1757109169749,-400.0,0.00037534,10]
[383759366,1757109169758,-400.0,0.00037534,10]
[383759367,1757109169769,-601.8,0.00037534,10]
[383759368,1757109169779,-400.0,0.00037534,10]
[383759369,1757109169790,-400.0,0.00037534,10]
[383759370,1757109169800,-400.0,0.00037534,10]
[383759371,1757109169811,-400.0,0.00037534,10]
[383759372,1757109169821,-400.0,0.00037534,10]
[383759373,1757109169832,-404.89,0.00037534,10]
[383759374,1757109169842,-400.0,0.00037534,10]
[383759375,1757109169853,-400.0,0.00037534,10]
[383759376,1757109169863,-414.05,0.00037534,10]
[383759377,1757109169873,-562.13,0.00037534,10]
[383759378,1757109169884,-400.0,0.00037534,10]
[383759379,1757109169894,-400.0,0.00037534,10]
[383759380,1757109169910,-457.02,0.00037534,10]
[383759381,1757109169919,-400.0,0.00037534,10]
[383759382,1757109169929,-400.0,0.00037534,10]
[383759383,1757109169939,-519.36,0.00037534,10]
[383759384,1757109169950,-400.0,0.00037534,10]
[383759385,1757109169960,-400.0,0.00037534,10]
[383759386,1757109169972,-400.0,0.00037534,10]
[383759387,1757109169982,-400.0,0.00037534,10]
[383759388,1757109169991,-400.0,0.00037534,10]
[383759389,1757109170001,-400.0,0.00037534,10]
[383759390,1757109170010,-400.0,0.00037534,10]
[383759391,1757109170020,-464.19,0.00037534,10]
[383759392,1757109170030,-400.0,0.00037534,10]
[383759393,1757109170040,-509.57,0.00037534,10]
[383759394,1757109170049,-400.0,0.00037534,10]
[383759395,1757109170059,-400.0,0.00037534,10]
[383759396,1757109170070,-400.0,0.00037534,10]
[383759397,1757109170079,-400.0,0.00037534,10]
[383759398,1757109170089,-400.0,0.00037534,10]
[383759399,1757109170099,-536.82,0.00037534,10]
[383759400,1757109170108,-400.0,0.00037534,10]
[383759401,1757109170118,-400.0,0.00037534,10]
[383759402,1757109170128,-400.0,0.00037534,10]
[383759403,1757109170137,-400.0,0.00037534,10]
[383759404,1757109170147,-456.25,0.00037534,10]
[383759405,1757109170157,-400.0,0.00037534,10]
[383759406,1757109170166,-400.0,0.00037534,10]
[383759407,1757109170176,-400.0,0.00037534,10]
[383759408,1757109170186,-400.0,0.00037534,10]
[383759409,1757109170198,-400.0,0.00037534,10]
[383759410,1757109170207,-400.0,0.00037534,10]
[383759411,1757109170217,-400.0,0.00037534,10]
[383759412,1757109170227,-400.0,0.00037534,10]
[383759413,1757109170237,-1325.01,0.00037534,10]
[383759414,1757109170246,-662.17,0.00037534,10]
[383759415,1757109170256,-404.01352783,0.00037534,10]
[383759416,1757109170265,-400.0,0.00037534,10]
[383759417,1757109170275,-475.33,0.00037534,10]
[383759418,1757109170284,-400.0,0.00037534,10]
[383759419,1757109170294,-400.0,0.00037534,10]
[383759420,1757109170303,-580.54,0.00037534,10]
[383759421,1757109170313,-400.0,0.00037534,10]
[383759422,1757109170323,-468.08,0.00037534,10]
[383759423,1757109170332,-400.0,0.00037534,10]
[383759424,1757109170342,-400.0,0.00037534,10]
[383759425,1757109170351,-400.0,0.00037534,10]
[383759426,1757109170361,-504.21,0.00037534,10]
[383759427,1757109170371,-403.00858917,0.00037534,10]
[383759428,1757109170380,-400.0,0.00037534,10]
[383759429,1757109170391,-470.77,0.00037534,10]
[383759430,1757109170401,-400.0,0.00037534,10]
[383759431,1757109170410,-400.0,0.00037534,10]
[383759432,1757109170420,-417.63,0.00037534,10]
[383759433,1757109170431,-400.0,0.00037534,10]
[383759434,1757109170442,-400.0,0.00037534,10]
[383759435,1757109170451,-406.01,0.00037534,10]
[383759436,1757109170461,-400.0,0.00037534,10]
[383759437,1757109170470,-400.0,0.00037534,10]
[383759438,1757109170480,-400.0,0.00037534,10]
[383759439,1757109170490,-400.0,0.00037534,10]
[383759440,1757109170500,-560.94,0.00037534,10]
[383759441,1757109170509,-400.0,0.00037534,10]
[383759442,1757109170519,-400.0,0.00037534,10]
[383759443,1757109170529,-671.39,0.00037534,10]
[383759444,1757109170538,-660.54,0.00037534,10]
[383759445,1757109170547,-400.0,0.00037534,10]
[383759446,1757109170557,-400.0,0.00037534,10]
[383759447,1757109170566,-400.0,0.00037534,10]
[383759448,1757109170575,-400.0,0.00037534,10]
[383759449,1757109170585,-400.0,0.00037534,10]
[383759450,1757109170596,-400.0,0.00037534,10]
[383759451,1757109170607,-505.54,0.00037534,10]
[383759452,1757109170617,-400.0,0.00037534,10]
[383759453,1757109170627,-400.0,0.00037534,10]
[383759454,1757109170637,-400.0,0.00037534,2]
[383759455,1757109170646,-400.0,0.00037534,10]
[383759456,1757109170656,-400.0,0.00037534,10]
[383759457,1757109170666,-493.62,0.00037534,10]
[383759458,1757109170675,-556.02,0.00037534,10]
[383759459,1757109170684,-514.72,0.00037534,10]
[383759460,1757109170695,-400.0,0.00037534,10]
[383759461,1757109170705,-456.07,0.00037534,10]
[383759462,1757109170714,-400.0,0.00037534,10]
[383759463,1757109170724,-1553.38,0.00037534,10]
[383759464,1757109170734,-737.77,0.00037534,10]
[383759465,1757109170743,-400.0,0.00037534,10]
[383759466,1757109170752,-400.0,0.00037534,10]
[383759467,1757109170761,-400.0,0.00037534,10]
[383759468,1757109170771,-400.0,0.00037534,10]
[383759469,1757109170780,-521.95,0.00037534,10]
[383759470,1757109170790,-400.0,0.00037534,10]
[383759471,1757109170801,-418.68,0.00037534,10]
[383759472,1757109170811,-583.81,0.00037534,10]
[383759473,1757109170821,-400.0,0.00037534,10]
[383759474,1757109170831,-400.0,0.00037534,10]
[383759475,1757109170840,-498.62,0.00037534,10]
[383759476,1757109170850,-430.27,0.00037534,10]
[383759477,1757109170860,-400.0,0.00037534,10]
[383759478,1757109170870,-400.0,0.00037534,10]
[383759479,1757109170880,-579.68,0.00037534,10]
[383759480,1757109170890,-425.45,0.00037534,10]
[383759481,1757109170899,-691.22,0.00037534,10]
[383759482,1757109170909,-400.0,0.00037534,7]
[383759483,1757109170919,-400.0,0.00037534,10]
[383759484,1757109170928,-601.12,0.00037534,10]
[383759485,1757109170938,-400.0,0.00037534,10]
[383759486,1757109170950,-400.0,0.00037534,10]
[383759487,1757109170960,-400.0,0.00037534,10]
[383759488,1757109170971,-400.0,0.00037534,10]
[383759489,1757109170981,-401.24,0.00037534,10]
[383759490,1757109170990,-607.93,0.00037534,10]
[383759491,1757109171000,-1060.4,0.00037534,10]
[383759492,1757109171010,-400.0,0.00037534,10]
[383759493,1757109171020,-487.13,0.00037534,10]
[383759494,1757109171029,-565.1,0.00037534,10]
[383759495,1757109171348,-400.0,0.00037534,10]
[383759496,1757109171363,-400.0,0.00037534,10]
[383759497,1757109171373,-643.16,0.00037534,10]
[383759498,1757109171383,-408.11,0.00037534,10]
[383759499,1757109171392,-599.17,0.00037534,10]
[383759500,1757109171401,-400.0,0.00037534,10]
[383759501,1757109171410,-400.0,0.00037534,10]
[383759502,1757109171420,-400.0,0.00037534,10]
[383759503,1757109171429,-400.0,0.00037534,10]
[383759504,1757109171438,-567.22,0.00037534,10]
[383759505,1757109171449,-400.0,0.00037534,10]
[383759506,1757109171458,-400.0,0.00037534,10]
[383759507,1757109171468,-400.0,0.00037534,10]
[383759508,1757109171478,-400.0,0.00037534,10]
[383759509,1757109171487,-400.0,0.00037534,10]
[383759510,1757109171497,-587.89,0.00037534,10]
[383759511,1757109171507,-400.0,0.00037534,10]
[383759512,1757109171516,-649.4,0.00037534,10]
[383759513,1757109171526,-400.0,0.00037534,10]
[383759514,1757109171535,-444.03,0.00037534,10]
[383759515,1757109171544,-540.45,0.00037534,10]
[383759516,1757109171554,-400.0,0.00037534,10]
[383759517,1757109171564,-521.91,0.00037534,10]
[383759518,1757109171574,-400.0,0.00037534,10]
[383759519,1757109171583,-577.54,0.00037534,10]
[383759520,1757109171593,-400.0,0.00037534,10]
[383759521,1757109171603,-400.0,0.00037534,10]
[383759522,1757109171613,-455.87,0.00037534,10]
[383759523,1757109171623,-1000.0,0.00037534,10]
[383759524,1757109171632,-606.17,0.00037534,10]
[383759525,1757109171642,-400.0,0.00037534,10]
[383759526,1757109171652,-400.0,0.00037534,10]
[383759527,1757109171662,-400.0,0.00037534,10]
[383759528,1757109171672,-552.86,0.00037534,10]
[383759529,1757109171682,-400.0,0.00037534,10]
[383759530,1757109171692,-738.19,0.00037534,10]
[383759531,1757109171702,-400.0,0.00037534,10]
[383759532,1757109171713,-400.0,0.00037534,10]
[383759533,1757109171723,-400.0,0.00037534,10]
[383759534,1757109171733,-400.0,0.00037534,10]
[383759535,1757109171744,-400.0,0.00037534,10]
[383759536,1757109171753,-400.0,0.00037534,10]
[383759537,1757109171763,-485.13,0.00037534,10]
[383759538,1757109171773,-400.0,0.00037534,10]
[383759539,1757109171783,-400.0,0.00037534,10]
[383759540,1757109171793,-400.0,0.00037534,10]
[383759541,1757109171803,-400.0,0.00037534,10]
[383759542,1757109171813,-497.92,0.00037534,10]
[383759543,1757109171823,-534.68,0.00037534,10]
[383759544,1757109171834,-400.0,0.00037534,10]
[383759545,1757109171845,-434.21,0.00037534,10]
[383759546,1757109171855,-400.0,0.00037534,10]
[383759547,1757109171867,-400.0,0.00037534,10]
[383759548,1757109171876,-400.0,0.00037534,10]
[383759549,1757109171886,-400.0,0.00037534,10]
[383759550,1757109171896,-400.0,0.00037534,10]
[383759551,1757109171906,-349.58300406,0.00037534,10]
[383759552,1757109171915,-400.0,0.00037534,10]
[383759553,1757109171926,-400.0,0.00037534,10]
[383759554,1757109171935,-400.0,0.00037534,10]
[383759555,1757109171945,-400.0,0.00037534,10]
[383759556,1757109171955,-400.0,0.00037534,10]
[383759557,1757109171966,-400.0,0.00037534,10]
[383759558,1757109171978,-400.0,0.00037534,10]
[383759559,1757109171987,-400.0,0.00037534,10]
[383759560,1757109171997,-400.0,0.00037534,10]
[383759561,1757109172011,-400.0,0.00037534,10]
[383759562,1757109172021,-400.0,0.00037534,10]
[383759563,1757109172030,-400.0,0.00037534,10]
[383759564,1757109172039,-697.19,0.00037534,10]
[383759565,1757109172049,-400.0,0.00037534,10]
[383759566,1757109172058,-400.0,0.00037534,10]
[383759567,1757109172068,-400.0,0.00037534,10]
[383759568,1757109172077,-588.33,0.00037534,10]
[383759569,1757109172086,-400.0,0.00037534,10]
[383759570,1757109172096,-467.87,0.00037534,10]
[383759571,1757109172106,-400.0,0.00037534,10]
[383759572,1757109172115,-400.0,0.00037534,10]
[383759573,1757109172124,-400.0,0.00037534,10]
[383759574,1757109172134,-400.0,0.00037534,10]
[383759575,1757109172144,-400.0,0.00037534,10]
[383759576,1757109172153,-400.0,0.00037534,10]
[383759577,1757109172163,-400.0,0.00037534,10]
[383759578,1757109172175,-400.0,0.00037534,10]
[383759579,1757109172185,-400.0,0.00037534,10]
[383759580,1757109172195,-400.0,0.00037534,10]
[383759581,1757109172206,-400.0,0.00037534,10]
[383759582,1757109172215,-400.0,0.00037534,10]
[383759583,1757109172226,-434.97,0.00037534,10]
[383759584,1757109172235,-400.0,0.00037534,10]
[383759585,1757109172245,-400.0,0.00037534,10]
[383759586,1757109172255,-400.0,0.00037534,10]
[383759587,1757109172265,-547.22,0.00037534,10]
[383759588,1757109172275,-9387.3,0.00037534,10]
[383759589,1757109172284,-400.0,0.00037534,10]
[383759590,1757109172295,-400.0,0.00037534,10]
[383759591,1757109172306,-438.16,0.00037534,10]
[383759592,1757109172316,-400.44,0.00037534,10]
[383759593,1757109172327,-400.0,0.00037534,10]
[383759594,1757109172337,-467.62,0.00037534,10]
[383759595,1757109172347,-506.66,0.00037534,10]
[383759596,1757109172358,-400.0,0.00037534,10]
[383759597,1757109172368,-400.0,0.00037534,10]
[383759598,1757109172379,-400.0,0.00037534,10]
[383759599,1757109172389,-400.0,0.00037534,10]
[383759600,1757109172400,-400.0,0.00037534,10]
[383759601,1757109172410,-422.62,0.00037534,10]
[383759602,1757109172420,-400.0,0.00037534,10]
[383759603,1757109172430,-406.5,0.00037534,10]
[383759604,1757109172440,-773.54,0.00037534,10]
[383759605,1757109172452,-400.0,0.00037534,10]
[383759606,1757109172464,-765.31,0.00037534,10]
[383759607,1757109172474,-400.0,0.00037534,10]
[383759608,1757109172486,-401.2,0.00037534,10]
[383759609,1757109172497,-400.0,0.00037534,10]
[383759610,1757109172507,-400.0,0.00037534,10]
[383759611,1757109172517,-400.0,0.00037534,10]
[383759612,1757109172526,-417.09,0.00037534,10]
[383759613,1757109172536,-441.78,0.00037534,10]
[383759614,1757109172545,-400.0,0.00037534,10]
[383759615,1757109172555,-400.0,0.00037534,10]
[383759616,1757109172566,-441.15,0.00037534,10]
[383759617,1757109172578,-400.0,0.00037534,10]
[383759618,1757109172588,-400.0,0.00037534,10]
[383759619,1757109172597,-400.0,0.00037534,10]
[383759620,1757109172607,-553.83,0.00037534,10]
[383759621,1757109172618,-546.26,0.00037534,10]
[383759622,1757109172629,-400.0,0.00037534,10]
[383759623,1757109172639,-400.0,0.00037534,10]
[383759624,1757109172649,-400.0,0.00037534,10]
[383759625,1757109172660,-194.73741181,0.00037534,10]
[383759626,1757109172671,-785.59,0.00037534,10]
[383759627,1757109172683,-437.91,0.00037534,10]
[383759628,1757109172694,-447.37,0.00037534,10]
[383759629,1757109172703,-400.0,0.00037534,10]
[383759630,1757109172713,-400.0,0.00037534,10]
[383759631,1757109172723,-632.37,0.00037534,10]
[383759632,1757109172732,-400.0,0.00037534,10]
[383759633,1757109172742,-400.0,0.00037534,10]
[383759634,1757109172752,-414.4,0.00037534,10]
[383759635,1757109172761,-400.0,0.00037534,10]
[383759636,1757109172771,-569.2,0.00037534,10]
[383759637,1757109172781,-981.06,0.00037534,10]
[383759638,1757109172790,-400.0,0.00037534,10]
[383759639,1757109172800,-400.0,0.00037534,10]
[383759640,1757109172810,-400.0,0.00037534,10]
[383759641,1757109172820,-400.0,0.00037534,10]
[383759642,1757109172830,-420.85,0.00037534,10]
[383759643,1757109172840,-542.91,0.00037534,10]
[383759644,1757109172849,-400.0,0.00037534,10]
[383759645,1757109172859,-1444.34,0.00037534,10]
[383759646,1757109172869,-400.0,0.00037534,10]
[383759647,1757109172878,-414.08,0.00037534,10]
[383759648,1757109172888,-400.0,0.00037534,10]
[383759649,1757109172898,-400.0,0.00037534,10]
[383759650,1757109172908,-2516.87,0.00037534,10]
[383759651,1757109172917,-400.0,0.00037534,10]
[383759652,1757109172927,-441.96,0.00037534,10]
[383759653,1757109172937,-498.12,0.00037534,10]
[383759654,1757109172946,-400.0,0.00037534,10]
[383759655,1757109172956,-487.97,0.00037534,10]
[383759656,1757109172966,-400.0,0.00037534,10]
[383759657,1757109172977,-586.94,0.00037534,10]
[383759658,1757109172987,-2345.08,0.00037534,10]
[383759659,1757109172997,-626.89,0.00037534,10]
[383759660,1757109173007,-447.68,0.00037534,10]
[383759661,1757109173016,-400.0,0.00037534,10]
[383759662,1757109173026,-400.0,0.00037534,10]
[383759663,1757109173035,-400.0,0.00037534,10]
[383759664,1757109173045,-400.0,0.00037534,10]
[383759665,1757109173054,-400.0,0.00037534,10]
[383759666,1757109173064,-448.78,0.00037534,10]
[383759667,1757109173073,-400.0,0.00037534,10]
[383759668,1757109173083,-400.0,0.00037534,10]
[383759669,1757109173093,-400.0,0.00037534,10]
[383759670,1757109173102,-475.22,0.00037534,10]
[383759671,1757109173112,-562.67,0.00037534,10]
[383759672,1757109173121,-546.92,0.00037534,10]
[383759673,1757109173131,-400.0,0.00037534,10]
[383759674,1757109173141,-576.12,0.00037534,10]
[383759675,1757109173151,-459.73,0.00037534,10]
[383759676,1757109173160,-400.0,0.00037534,10]
[383759677,1757109173170,-400.0,0.00037534,10]
[383759678,1757109173179,-400.0,0.00037534,10]
[383759679,1757109173189,-400.0,0.00037534,10]
[383759680,1757109173199,-400.0,0.00037534,10]
[383759681,1757109173208,-400.0,0.00037534,2]
[383759682,1757109173218,-543.53,0.00037534,10]
[383759683,1757109173227,-400.0,0.00037534,10]
[383759684,1757109173236,-495.5,0.00037534,10]
[383759685,1757109173245,-551.73,0.00037534,10]
[383759686,1757109173254,-400.0,0.00037534,10]
[383759687,1757109173263,-584.47,0.00037534,10]
[383759688,1757109173273,-400.0,0.00037534,10]
[383759689,1757109173282,-400.0,0.00037534,10]
[383759690,1757109173292,-400.0,0.00037534,10]
[383759691,1757109173301,-445.12,0.00037534,10]
[383759692,1757109173310,-400.0,0.00037534,10]
[383759693,1757109173320,-400.0,0.00037534,10]
[383759694,1757109173329,-400.0,0.00037534,10]
[383759695,1757109173338,-618.31,0.00037534,10]
[383759696,1757109173347,-582.55,0.00037534,10]
[383759697,1757109173356,-2141.03,0.00037534,10]
[383759698,1757109173365,-502.39,0.00037534,10]
[383759699,1757109173375,-400.0,0.00037534,10]
[383759700,1757109173384,-400.0,0.00037534,10]
[383759701,1757109173394,-400.0,0.00037534,10]
[383759702,1757109173403,-884.72,0.00037534,10]
[383759703,1757109173412,-400.0,0.00037534,10]
[383759704,1757109173421,-492.2,0.00037534,10]
[383759705,1757109173430,-494.68,0.00037534,10]
[383759706,1757109173440,-400.0,0.00037534,10]
[383759707,1757109173449,-590.75,0.00037534,10]
[383759708,1757109173458,-434.34,0.00037534,10]
[383759709,1757109173467,-400.0,0.00037534,10]
[383759710,1757109173477,-400.0,0.00037534,10]
[383759711,1757109173486,-400.0,0.00037534,10]
[383759712,1757109173496,-423.04,0.00037534,10]
[383759713,1757109173505,-400.0,0.00037534,10]
[383759714,1757109173515,-400.0,0.00037534,10]
[383759715,1757109173524,-400.0,0.00037534,10]
[383759716,1757109173534,-474.82,0.00037534,10]
[383759717,1757109173543,-400.0,0.00037534,10]
[383759718,1757109173552,-400.0,0.00037534,10]
[383759719,1757109173561,-400.0,0.00037534,10]
[383759720,1757109173570,-400.0,0.00037534,10]
[383759721,1757109173579,-400.0,0.00037534,10]
[383759722,1757109173589,-400.0,0.00037534,10]
[383759723,1757109173599,-400.0,0.00037534,10]
[383759724,1757109173608,-400.0,0.00037534,10]
[383759725,1757109173618,-422.6,0.00037534,10]
[383759726,1757109173627,-400.0,0.00037534,10]
[383759727,1757109173637,-1028.14,0.00037534,10]
[383759728,1757109173646,-404.16,0.00037534,10]
[383759729,1757109173655,-2757.36,0.00037534,10]
[383759730,1757109173665,-400.0,0.00037534,10]
[383759731,1757109173675,-400.0,0.00037534,10]
[383759732,1757109173684,-701.4,0.00037534,10]
[383759733,1757109173694,-696.57,0.00037534,10]
[383759734,1757109173704,-766.81,0.00037534,10]
[383759735,1757109173714,-400.0,0.00037534,10]
[383759736,1757109173723,-400.0,0.00037534,10]
[383759737,1757109173733,-400.0,0.00037534,10]
[383759738,1757109173742,-438.53,0.00037534,10]
[383759739,1757109173751,-400.0,0.00037534,10]
[383759740,1757109173869,-400.0,0.00037534,10]
[383759741,1757109173879,-400.0,0.00037534,10]
[383759742,1757109173888,-400.0,0.00037534,10]
[383759743,1757109173898,-480.98,0.00037534,10]
[383759744,1757109173908,-425.95,0.00037534,10]
[383759745,1757109173918,-400.0,0.00037534,10]
[383759746,1757109173927,-400.0,0.00037534,10]
[383759747,1757109173937,-443.56,0.00037534,10]
[383759748,1757109173947,-400.0,0.00037534,10]
[383759749,1757109173957,-501.99,0.00037534,10]
[383759750,1757109173967,-400.0,0.00037534,10]
[383759751,1757109173979,-400.0,0.00037534,10]
[383759752,1757109173989,-400.0,0.00037534,10]
[383759753,1757109173998,-400.0,0.00037534,10]
[383759754,1757109174007,-441.78,0.00037534,10]
[383759755,1757109174018,-545.84,0.00037534,10]
[383759756,1757109174027,-545.23,0.00037534,10]
[383759757,1757109174037,-439.9,0.00037534,10]
[383759758,1757109174047,-400.0,0.00037534,10]
[383759759,1757109174057,-400.0,0.00037534,10]
[383759760,1757109174067,-405.11,0.00037534,10]
[383759761,1757109174076,-400.0,0.00037534,10]
[383759762,1757109174085,-400.0,0.00037534,10]
[383759763,1757109174095,-400.0,0.00037534,10]
[383759764,1757109174105,-400.0,0.00037534,10]
[383759765,1757109174115,-413.96,0.00037534,10]
[383759766,1757109174124,-470.74,0.00037534,10]
[383759767,1757109174133,-400.0,0.00037534,10]
[383759768,1757109174143,-1154.65,0.00037534,10]
[383759769,1757109174152,-400.0,0.00037534,10]
[383759770,1757109174161,-400.0,0.00037534,10]
[383759771,1757109174170,-3534.15,0.00037534,10]
[383759772,1757109174180,-400.0,0.00037534,10]
[383759773,1757109174189,-400.0,0.00037534,10]
[383759774,1757109174198,-466.43,0.00037534,10]
[383759775,1757109174208,-400.0,0.00037534,10]
[383759776,1757109174217,-486.3,0.00037534,10]
[383759777,1757109174227,-552.13,0.00037534,10]
[383759778,1757109174236,-529.91,0.00037534,10]
[383759779,1757109174246,-524.16,0.00037534,10]
[383759780,1757109174255,-400.0,0.00037534,10]
[383759781,1757109174266,-400.0,0.00037534,10]
[383759782,1757109174275,-400.0,0.00037534,10]
[383759783,1757109174285,-836.63,0.00037534,10]
[383759784,1757109174294,-400.0,0.00037534,10]
[383759785,1757109174304,-400.0,0.00037534,10]
[383759786,1757109174313,-647.19,0.00037534,10]
[383759787,1757109174322,-400.0,0.00037534,10]
[383759788,1757109174331,-400.0,0.00037534,10]
[383759789,1757109174340,-531.26,0.00037534,10]
[383759790,1757109174350,-400.0,0.00037534,10]
[383759791,1757109174359,-508.58,0.00037534,10]
[383759792,1757109174368,-690.4,0.00037534,10]
[383759793,1757109174378,-400.0,0.00037534,10]
[383759794,1757109174387,-400.0,0.00037534,10]
[383759795,1757109174395,-424.68,0.00037534,10]
[383759796,1757109174405,-400.0,0.00037534,10]
[383759797,1757109174415,-1608.94,0.00037534,10]
[383759798,1757109174424,-496.78,0.00037534,10]
[383759799,1757109174433,-400.0,0.00037534,10]
[383759800,1757109174442,-400.0,0.00037534,10]
[383759801,1757109174452,-414.05,0.00037534,10]
[383759802,1757109174461,-400.0,0.00037534,10]
[383759803,1757109174470,-400.0,0.00037534,10]
[383759804,1757109174479,-983.85,0.00037534,10]
[383759805,1757109174489,-522.3,0.00037534,10]
[383759806,1757109174498,-2782.91,0.00037534,10]
[383759807,1757109174507,-400.0,0.00037534,10]
[383759808,1757109174516,-650.54,0.00037534,10]
[383759809,1757109174525,-436.1,0.00037534,10]
[383759810,1757109174535,-1361.26,0.00037534,10]
[383759811,1757109174544,-400.0,0.00037534,10]
[383759812,1757109174553,-400.0,0.00037534,10]
[383759813,1757109174562,-400.0,0.00037534,10]
[383759814,1757109174571,-649.0,0.00037534,10]